[Event "*** SCC Grand Prix: Titled Tuesday Blitz"]
[Site "Chess.com"]
[Date "2020.08.11"]
[Round "9"]
[White "XiaoKangZhong"]
[Black "MuhittinBuker"]
[Result "1-0"]
[WhiteElo "2427"]
[BlackElo "2028"]
[TimeControl "180+1"]
[EndTime "11:46:00 PDT"]
[Termination "XiaoKangZhong won by resignation"]

1. e4 {[%clk 0:03:00.9]} 1... e5 {[%clk 0:02:58.8]} 2. Nf3 {[%clk 0:03:00.1]}
2... Nc6 {[%clk 0:02:58.7]} 3. Bc4 {[%clk 0:02:59.8]} 3... Nf6 {[%clk 0:02:58]}
4. d3 {[%clk 0:02:48.4]} 4... Bc5 {[%clk 0:02:56.1]} 5. O-O {[%clk 0:02:45.5]}
5... a6 {[%clk 0:02:55.5]} 6. a4 {[%clk 0:02:45.7]} 6... d6 {[%clk 0:02:54.4]}
7. Nbd2 {[%clk 0:02:42.3]} 7... h6 {[%clk 0:02:54.2]} 8. c3 {[%clk 0:02:41.4]}
8... O-O {[%clk 0:02:44.6]} 9. Bb3 {[%clk 0:02:38.8]} 9... Be6 {[%clk
0:02:41.7]} 10. Bc2 {[%clk 0:02:38.5]} 10... b5 {[%clk 0:02:38.2]} 11. h3 {[%clk
0:02:35.1]} 11... Re8 {[%clk 0:02:36.4]} 12. Re1 {[%clk 0:02:34.7]} 12... b4
{[%clk 0:02:34.3]} 13. Nf1 {[%clk 0:02:31.7]} 13... Rb8 {[%clk 0:02:29.7]} 14.
d4 {[%clk 0:02:27.8]} 14... bxc3 {[%clk 0:02:23.7]} 15. bxc3 {[%clk 0:02:26.2]}
15... exd4 {[%clk 0:02:23.4]} 16. cxd4 {[%clk 0:02:26.5]} 16... Bb4 {[%clk
0:02:23.7]} 17. d5 {[%clk 0:02:24.3]} 17... Bxe1 {[%clk 0:02:23.7]} 18. Nxe1
{[%clk 0:02:23.3]} 18... Bc8 {[%clk 0:01:47]} 19. dxc6 {[%clk 0:02:20.8]} 19...
Nxe4 {[%clk 0:01:46.5]} 20. Bxe4 {[%clk 0:02:18.7]} 20... Rxe4 {[%clk
0:01:45.8]} 21. Ng3 {[%clk 0:02:18.6]} 21... Rc4 {[%clk 0:01:41.1]} 22. Nf3
{[%clk 0:01:56.6]} 22... Rxc6 {[%clk 0:01:36.4]} 23. Qd4 {[%clk 0:01:55.3]}
23... Rcb6 {[%clk 0:01:20]} 24. Nh5 {[%clk 0:01:39.8]} 24... f6 {[%clk
0:01:16.3]} 25. Qd5+ {[%clk 0:01:19]} 25... Kh8 {[%clk 0:00:51.9]} 26. Nh4
{[%clk 0:00:51.2]} 26... Qe8 {[%clk 0:00:48.7]} 27. Nf4 {[%clk 0:00:46.7]} 27...
Qe1+ {[%clk 0:00:31.5]} 28. Kh2 {[%clk 0:00:45.9]} 28... Qe5 {[%clk 0:00:26.8]}
29. Ng6+ {[%clk 0:00:42.5]} 29... Kh7 {[%clk 0:00:25.2]} 30. Nf8+ {[%clk
0:00:41.1]} 30... Kh8 {[%clk 0:00:22.5]} 31. Ng6+ {[%clk 0:00:41.7]} 31... Kh7
{[%clk 0:00:22.8]} 32. Nxe5 {[%clk 0:00:42.4]} 32... dxe5 {[%clk 0:00:20.5]} 33.
Ne2 {[%clk 0:00:33.5]} 33... Be6 {[%clk 0:00:18.7]} 34. Qe4+ {[%clk 0:00:33.3]}
34... Kh8 {[%clk 0:00:18.4]} 35. Be3 {[%clk 0:00:31.5]} 35... Rb4 {[%clk
0:00:18.2]} 36. Qc6 {[%clk 0:00:31.2]} 36... Bg8 {[%clk 0:00:14.5]} 37. Qxc7
{[%clk 0:00:29.2]} 37... Rb2 {[%clk 0:00:13.7]} 38. Ng3 {[%clk 0:00:28.9]} 38...
Bh7 {[%clk 0:00:11.8]} 39. Rd1 {[%clk 0:00:19.8]} 39... R2b7 {[%clk 0:00:11.2]}
40. Rd8+ {[%clk 0:00:18.9]} 40... Bg8 {[%clk 0:00:11.4]} 41. Qxb8 {[%clk
0:00:16.9]} 41... Rxb8 {[%clk 0:00:11.3]} 42. Rxb8 {[%clk 0:00:17.2]} 42... Kh7
{[%clk 0:00:11.2]} 43. Rb7 {[%clk 0:00:16.6]} 43... Bc4 {[%clk 0:00:11]} 44. Nf5
{[%clk 0:00:15.1]} 44... Kg6 {[%clk 0:00:10.9]} 45. g4 {[%clk 0:00:14.6]} 1-0

[Event "*** SCC Grand Prix: Titled Tuesday Blitz"]
[Site "Chess.com"]
[Date "2020.08.11"]
[Round "9"]
[White "AttackSparrow"]
[Black "FMalexhdez"]
[Result "1-0"]
[WhiteElo "2329"]
[BlackElo "2196"]
[TimeControl "180+1"]
[EndTime "11:46:00 PDT"]
[Termination "AttackSparrow won on time"]

1. e4 {[%clk 0:02:22]} 1... c5 {[%clk 0:02:57]} 2. c3 {[%clk 0:02:21.6]} 2... d6
{[%clk 0:02:55.8]} 3. d4 {[%clk 0:02:21.5]} 3... cxd4 {[%clk 0:02:55.1]} 4. cxd4
{[%clk 0:02:22.4]} 4... g6 {[%clk 0:02:54.9]} 5. Nc3 {[%clk 0:02:23]} 5... Bg7
{[%clk 0:02:55.2]} 6. h3 {[%clk 0:02:23.4]} 6... Nc6 {[%clk 0:02:55.3]} 7. Nf3
{[%clk 0:02:23.3]} 7... Nf6 {[%clk 0:02:54.7]} 8. d5 {[%clk 0:02:22.8]} 8... Ne5
{[%clk 0:02:52.2]} 9. Nxe5 {[%clk 0:02:22.4]} 9... dxe5 {[%clk 0:02:52.2]} 10.
Bb5+ {[%clk 0:02:20.9]} 10... Bd7 {[%clk 0:02:52.7]} 11. Bd3 {[%clk 0:02:21.8]}
11... O-O {[%clk 0:02:50.6]} 12. O-O {[%clk 0:02:21.6]} 12... Ne8 {[%clk
0:02:43.6]} 13. Be3 {[%clk 0:02:18.4]} 13... Nd6 {[%clk 0:02:42.2]} 14. Rc1
{[%clk 0:02:17.2]} 14... a6 {[%clk 0:02:41.7]} 15. Na4 {[%clk 0:02:09.1]} 15...
Bb5 {[%clk 0:02:27.8]} 16. Nb6 {[%clk 0:02:03.2]} 16... Rb8 {[%clk 0:02:23]} 17.
a4 {[%clk 0:02:01.5]} 17... Be8 {[%clk 0:02:12.8]} 18. b3 {[%clk 0:01:52.3]}
18... f5 {[%clk 0:02:11.9]} 19. f3 {[%clk 0:01:42.7]} 19... f4 {[%clk
0:02:10.8]} 20. Bf2 {[%clk 0:01:41]} 20... g5 {[%clk 0:02:10.4]} 21. Nc4 {[%clk
0:01:35.9]} 21... b5 {[%clk 0:01:51.8]} 22. Nxd6 {[%clk 0:01:31.1]} 22... exd6
{[%clk 0:01:51.6]} 23. axb5 {[%clk 0:01:31.2]} 23... axb5 {[%clk 0:01:45.9]} 24.
Qc2 {[%clk 0:01:26.2]} 24... Rf7 {[%clk 0:01:44.2]} 25. Qa2 {[%clk 0:01:16.2]}
25... Rc7 {[%clk 0:01:37.5]} 26. Rc2 {[%clk 0:00:46.9]} 26... Rbc8 {[%clk
0:01:28.4]} 27. Rfc1 {[%clk 0:00:44.4]} 27... Rxc2 {[%clk 0:01:24.9]} 28. Rxc2
{[%clk 0:00:45.3]} 28... Rxc2 {[%clk 0:01:22.9]} 29. Qxc2 {[%clk 0:00:46.2]}
29... Bf6 {[%clk 0:01:11.7]} 30. b4 {[%clk 0:00:44.9]} 30... Qb8 {[%clk
0:01:10.3]} 31. Qa2 {[%clk 0:00:35.9]} 31... Bd8 {[%clk 0:00:58.4]} 32. Qa6
{[%clk 0:00:35.4]} 32... Bd7 {[%clk 0:00:49]} 33. Kh2 {[%clk 0:00:34.8]} 33...
Kf7 {[%clk 0:00:47.3]} 34. Ba7 {[%clk 0:00:30.7]} 34... Qa8 {[%clk 0:00:38.7]}
35. Qxd6 {[%clk 0:00:17.9]} 35... Qxa7 {[%clk 0:00:38.1]} 36. Qxe5 {[%clk
0:00:14.1]} 36... Bf6 {[%clk 0:00:36.6]} 37. Qd6 {[%clk 0:00:13.1]} 37... Be7
{[%clk 0:00:16.6]} 38. Qh6 {[%clk 0:00:12.7]} 38... Bxb4 {[%clk 0:00:15.4]} 39.
Qxh7+ {[%clk 0:00:12.2]} 39... Ke8 {[%clk 0:00:14]} 40. e5 {[%clk 0:00:12.2]}
40... Be1 {[%clk 0:00:08.9]} 41. Qg8+ {[%clk 0:00:11.4]} 41... Ke7 {[%clk
0:00:07.8]} 42. Qxg5+ {[%clk 0:00:10]} 42... Ke8 {[%clk 0:00:06]} 43. Bg6+
{[%clk 0:00:09.8]} 43... Kf8 {[%clk 0:00:04]} 44. Qf6+ {[%clk 0:00:10.2]} 44...
Kg8 {[%clk 0:00:03.6]} 45. Qf7+ {[%clk 0:00:11.1]} 1-0

[Event "*** SCC Grand Prix: Titled Tuesday Blitz"]
[Site "Chess.com"]
[Date "2020.08.11"]
[Round "9"]
[White "Andrii_Prydun"]
[Black "AlexSuv"]
[Result "0-1"]
[WhiteElo "2353"]
[BlackElo "2490"]
[TimeControl "180+1"]
[EndTime "11:46:01 PDT"]
[Termination "AlexSuv won on time"]

1. d4 {[%clk 0:03:00.9]} 1... Nf6 {[%clk 0:02:59.7]} 2. Nc3 {[%clk 0:03:00.4]}
2... d5 {[%clk 0:02:58.3]} 3. Bf4 {[%clk 0:02:59.5]} 3... Bf5 {[%clk 0:02:54.7]}
4. f3 {[%clk 0:02:58.2]} 4... e6 {[%clk 0:02:54.2]} 5. g4 {[%clk 0:02:57.7]}
5... Bg6 {[%clk 0:02:53.9]} 6. h4 {[%clk 0:02:57.9]} 6... h5 {[%clk 0:02:53]} 7.
g5 {[%clk 0:02:57.6]} 7... Nfd7 {[%clk 0:02:53.1]} 8. e3 {[%clk 0:02:57.4]} 8...
Bd6 {[%clk 0:02:49]} 9. Nh3 {[%clk 0:02:56.2]} 9... Nc6 {[%clk 0:02:33.2]} 10.
Bd3 {[%clk 0:02:55.6]} 10... Ne7 {[%clk 0:02:33.4]} 11. Bxd6 {[%clk 0:02:54.7]}
11... cxd6 {[%clk 0:02:33.3]} 12. Nf4 {[%clk 0:02:54.4]} 12... Bxd3 {[%clk
0:02:32.5]} 13. Qxd3 {[%clk 0:02:55.3]} 13... g6 {[%clk 0:02:28.9]} 14. O-O-O
{[%clk 0:02:55.6]} 14... Rc8 {[%clk 0:02:28]} 15. e4 {[%clk 0:02:55.5]} 15...
dxe4 {[%clk 0:02:26.9]} 16. fxe4 {[%clk 0:02:55.7]} 16... a6 {[%clk 0:02:23.8]}
17. Rhf1 {[%clk 0:02:48]} 17... b5 {[%clk 0:02:15.9]} 18. Qf3 {[%clk 0:02:43.5]}
18... Rf8 {[%clk 0:02:09.3]} 19. e5 {[%clk 0:02:42.6]} 19... dxe5 {[%clk
0:02:01.1]} 20. dxe5 {[%clk 0:02:42.5]} 20... Qc7 {[%clk 0:02:01.3]} 21. Rf2
{[%clk 0:01:53.5]} 21... Nxe5 {[%clk 0:01:57.2]} 22. Qg3 {[%clk 0:01:50.6]}
22... Ng4 {[%clk 0:01:37.3]} 23. Ne4 {[%clk 0:01:46.8]} 23... Nf5 {[%clk
0:01:27.6]} 24. Qa3 {[%clk 0:01:37.1]} 24... Qb6 {[%clk 0:00:57.7]} 25. Re2
{[%clk 0:01:20.2]} 25... b4 {[%clk 0:00:51.2]} 26. Qb3 {[%clk 0:01:08.5]} 26...
Ke7 {[%clk 0:00:46]} 27. Nd6 {[%clk 0:00:52.8]} 27... Nfe3 {[%clk 0:00:20.5]}
28. Nxc8+ {[%clk 0:00:19.5]} 28... Rxc8 {[%clk 0:00:21.4]} 29. Rde1 {[%clk
0:00:20.2]} 29... a5 {[%clk 0:00:17.1]} 30. Rxe3 {[%clk 0:00:19.5]} 30... Nxe3
{[%clk 0:00:16.4]} 31. Qxe3 {[%clk 0:00:19.4]} 31... Qc6 {[%clk 0:00:15.9]} 32.
Qd3 {[%clk 0:00:18.4]} 32... Kf8 {[%clk 0:00:15.6]} 33. Ne2 {[%clk 0:00:15.6]}
33... Qa4 {[%clk 0:00:14.5]} 34. Kb1 {[%clk 0:00:14.8]} 34... Qc6 {[%clk
0:00:13.6]} 35. Nd4 {[%clk 0:00:14.6]} 35... Qg2 {[%clk 0:00:13.9]} 36. Rf1
{[%clk 0:00:13.6]} 36... Kg8 {[%clk 0:00:12.9]} 37. Rc1 {[%clk 0:00:07.3]} 37...
Qg4 {[%clk 0:00:12.1]} 38. Nf3 {[%clk 0:00:05.8]} 38... Qf4 {[%clk 0:00:12.2]}
39. Re1 {[%clk 0:00:04.6]} 39... a4 {[%clk 0:00:12.4]} 40. a3 {[%clk 0:00:03.3]}
40... bxa3 {[%clk 0:00:12.4]} 41. Qxa3 {[%clk 0:00:02.9]} 41... Qc4 {[%clk
0:00:12.7]} 42. Qd3 {[%clk 0:00:02.8]} 42... Qb4 {[%clk 0:00:12.5]} 43. Ne5
{[%clk 0:00:02.7]} 43... Rb8 {[%clk 0:00:12.8]} 44. Qc3 {[%clk 0:00:01.5]} 44...
Qxc3 {[%clk 0:00:12.9]} 0-1

[Event "*** SCC Grand Prix: Titled Tuesday Blitz"]
[Site "Chess.com"]
[Date "2020.08.11"]
[Round "9"]
[White "GianmarcoVaR"]
[Black "m_ezat"]
[Result "0-1"]
[WhiteElo "2458"]
[BlackElo "2612"]
[TimeControl "180+1"]
[EndTime "11:46:03 PDT"]
[Termination "m_ezat won by resignation"]

1. d4 {[%clk 0:02:57]} 1... Nf6 {[%clk 0:02:55.8]} 2. Nf3 {[%clk 0:02:55.5]}
2... g6 {[%clk 0:02:56.1]} 3. Bg5 {[%clk 0:02:55.6]} 3... d5 {[%clk 0:02:54.8]}
4. Nbd2 {[%clk 0:02:52.6]} 4... Nbd7 {[%clk 0:02:53.7]} 5. e3 {[%clk 0:02:49.2]}
5... Bg7 {[%clk 0:02:53.9]} 6. c3 {[%clk 0:02:48.6]} 6... O-O {[%clk 0:02:53.9]}
7. Be2 {[%clk 0:02:48.5]} 7... c5 {[%clk 0:02:54.4]} 8. O-O {[%clk 0:02:48.7]}
8... b6 {[%clk 0:02:51.6]} 9. a4 {[%clk 0:02:45.6]} 9... a6 {[%clk 0:02:43.4]}
10. a5 {[%clk 0:02:44.3]} 10... b5 {[%clk 0:02:42.6]} 11. b4 {[%clk 0:02:44]}
11... cxb4 {[%clk 0:02:39.7]} 12. cxb4 {[%clk 0:02:42.7]} 12... h6 {[%clk
0:02:36.2]} 13. Bh4 {[%clk 0:02:39.9]} 13... g5 {[%clk 0:02:28.1]} 14. Bg3
{[%clk 0:02:39.5]} 14... Nh5 {[%clk 0:02:28.1]} 15. Rc1 {[%clk 0:02:32.8]} 15...
Nxg3 {[%clk 0:02:27.7]} 16. hxg3 {[%clk 0:02:33.7]} 16... e5 {[%clk 0:02:27.7]}
17. dxe5 {[%clk 0:02:22.5]} 17... Nxe5 {[%clk 0:02:27.1]} 18. Nxe5 {[%clk
0:02:23.4]} 18... Bxe5 {[%clk 0:02:27.6]} 19. Bf3 {[%clk 0:02:17.3]} 19... Be6
{[%clk 0:02:21.4]} 20. Nb3 {[%clk 0:02:17.4]} 20... Qf6 {[%clk 0:01:54.8]} 21.
Nc5 {[%clk 0:01:31.6]} 21... Rfd8 {[%clk 0:01:50.3]} 22. Bg4 {[%clk 0:01:31.9]}
22... d4 {[%clk 0:01:43.9]} 23. Bxe6 {[%clk 0:01:31.1]} 23... fxe6 {[%clk
0:01:42.7]} 24. exd4 {[%clk 0:00:56.7]} 24... Bxd4 {[%clk 0:01:34.9]} 25. Qb3
{[%clk 0:00:56.7]} 25... Rd5 {[%clk 0:01:29.5]} 26. Rc2 {[%clk 0:00:23.6]} 26...
Rf8 {[%clk 0:01:24.3]} 27. Nxa6 {[%clk 0:00:22.3]} 27... Rf5 {[%clk 0:01:06.8]}
28. Qa2 {[%clk 0:00:21]} 28... Kh8 {[%clk 0:00:57]} 29. Re2 {[%clk 0:00:19.2]}
29... e5 {[%clk 0:00:54.4]} 30. Nc7 {[%clk 0:00:19.3]} 30... e4 {[%clk
0:00:33.9]} 31. Ne6 {[%clk 0:00:15.3]} 31... e3 {[%clk 0:00:20.3]} 32. Nxd4
{[%clk 0:00:06.7]} 32... exf2+ {[%clk 0:00:19.7]} 33. Kh2 {[%clk 0:00:03]} 33...
Qxd4 {[%clk 0:00:18.9]} 34. Qb2 {[%clk 0:00:02.9]} 34... Qxb2 {[%clk 0:00:17]}
35. Rxb2 {[%clk 0:00:03.8]} 35... g4 {[%clk 0:00:16.3]} 36. Rfxf2 {[%clk
0:00:02.2]} 36... Rxf2 {[%clk 0:00:16.3]} 37. Rxf2 {[%clk 0:00:02.2]} 37... Rxf2
{[%clk 0:00:16.8]} 0-1

[Event "*** SCC Grand Prix: Titled Tuesday Blitz"]
[Site "Chess.com"]
[Date "2020.08.11"]
[Round "9"]
[White "Alexandr_Kholin"]
[Black "attack2mateU"]
[Result "0-1"]
[WhiteElo "2515"]
[BlackElo "2714"]
[TimeControl "180+1"]
[EndTime "11:46:04 PDT"]
[Termination "attack2mateU won by resignation"]

1. d4 {[%clk 0:03:00.9]} 1... Nf6 {[%clk 0:02:59.3]} 2. c4 {[%clk 0:02:56.1]}
2... g6 {[%clk 0:02:58.8]} 3. Nc3 {[%clk 0:02:55.6]} 3... d5 {[%clk 0:02:59.4]}
4. cxd5 {[%clk 0:02:54.5]} 4... Nxd5 {[%clk 0:03:00.3]} 5. Bd2 {[%clk
0:02:54.8]} 5... Bg7 {[%clk 0:02:57.5]} 6. e4 {[%clk 0:02:52.2]} 6... Nxc3
{[%clk 0:02:57.2]} 7. Bxc3 {[%clk 0:02:51.5]} 7... O-O {[%clk 0:02:56.5]} 8. Nf3
{[%clk 0:02:51]} 8... c5 {[%clk 0:02:54.5]} 9. d5 {[%clk 0:02:41]} 9... e6
{[%clk 0:02:15.7]} 10. Bxg7 {[%clk 0:02:36.1]} 10... Kxg7 {[%clk 0:02:15.2]} 11.
Bc4 {[%clk 0:02:36.7]} 11... b5 {[%clk 0:01:51.1]} 12. Bb3 {[%clk 0:02:24.7]}
12... c4 {[%clk 0:01:48.6]} 13. Bc2 {[%clk 0:01:04.7]} 13... exd5 {[%clk
0:01:48.1]} 14. Qd4+ {[%clk 0:01:03]} 14... Kg8 {[%clk 0:01:39.7]} 15. O-O
{[%clk 0:00:47.1]} 15... Nc6 {[%clk 0:01:18.9]} 16. Qxd5 {[%clk 0:00:43.4]}
16... Qxd5 {[%clk 0:01:18.3]} 17. exd5 {[%clk 0:00:44.3]} 17... Nb4 {[%clk
0:01:18.9]} 18. Nd4 {[%clk 0:00:43.8]} 18... Bb7 {[%clk 0:00:34.6]} 19. a4
{[%clk 0:00:42]} 19... Nxc2 {[%clk 0:00:29.4]} 20. Nxc2 {[%clk 0:00:39.1]} 20...
bxa4 {[%clk 0:00:26.5]} 21. Rfd1 {[%clk 0:00:31.4]} 21... Rfd8 {[%clk
0:00:09.6]} 22. Ne3 {[%clk 0:00:29.6]} 22... Rac8 {[%clk 0:00:05.9]} 23. Rxa4
{[%clk 0:00:27.3]} 23... a6 {[%clk 0:00:05.2]} 24. Rb4 {[%clk 0:00:21.6]} 24...
Rd7 {[%clk 0:00:02.5]} 25. Rb6 {[%clk 0:00:20.4]} 25... Rcd8 {[%clk 0:00:01.9]}
26. h3 {[%clk 0:00:14]} 26... Bxd5 {[%clk 0:00:01.8]} 27. Rxd5 {[%clk
0:00:06.6]} 27... Rxd5 {[%clk 0:00:02.7]} 28. Nxd5 {[%clk 0:00:07.5]} 28... Rxd5
{[%clk 0:00:03.2]} 29. Rxa6 {[%clk 0:00:08]} 29... Rd1+ {[%clk 0:00:03.7]} 30.
Kh2 {[%clk 0:00:08.4]} 30... Rd2 {[%clk 0:00:04.4]} 31. Rc6 {[%clk 0:00:05.6]}
31... Rxf2 {[%clk 0:00:04.2]} 32. Rxc4 {[%clk 0:00:05.1]} 32... Rxb2 {[%clk
0:00:04.8]} 33. h4 {[%clk 0:00:05.7]} 33... Kg7 {[%clk 0:00:04.4]} 34. Rc6
{[%clk 0:00:05.9]} 34... Re2 {[%clk 0:00:03.7]} 35. Kh3 {[%clk 0:00:06.3]} 35...
Re6 {[%clk 0:00:04.4]} 36. Rc5 {[%clk 0:00:06]} 36... Kf6 {[%clk 0:00:04.6]} 37.
g3 {[%clk 0:00:06.2]} 37... h6 {[%clk 0:00:04.4]} 38. Ra5 {[%clk 0:00:06.2]}
38... Re5 {[%clk 0:00:04.1]} 39. Kg2 {[%clk 0:00:06.7]} 39... Rxa5 {[%clk
0:00:03.9]} 0-1

[Event "*** SCC Grand Prix: Titled Tuesday Blitz"]
[Site "Chess.com"]
[Date "2020.08.11"]
[Round "9"]
[White "MVM2008"]
[Black "Duong57"]
[Result "0-1"]
[WhiteElo "2200"]
[BlackElo "2334"]
[TimeControl "180+1"]
[EndTime "11:46:05 PDT"]
[Termination "Duong57 won on time"]

1. e4 {[%clk 0:03:00.9]} 1... c5 {[%clk 0:02:59.5]} 2. Nf3 {[%clk 0:03:00.7]}
2... d6 {[%clk 0:02:59.6]} 3. d4 {[%clk 0:03:00.7]} 3... cxd4 {[%clk 0:03:00.5]}
4. Nxd4 {[%clk 0:03:01.6]} 4... Nf6 {[%clk 0:03:00.8]} 5. Nc3 {[%clk 0:03:01.6]}
5... a6 {[%clk 0:03:01.4]} 6. f4 {[%clk 0:03:01.8]} 6... e5 {[%clk 0:03:01]} 7.
Nf3 {[%clk 0:03:00.6]} 7... Qc7 {[%clk 0:03:00.8]} 8. fxe5 {[%clk 0:02:31.2]}
8... dxe5 {[%clk 0:03:00.5]} 9. Bg5 {[%clk 0:02:29.8]} 9... Bb4 {[%clk 0:02:53]}
10. Bd3 {[%clk 0:02:12.9]} 10... Bxc3+ {[%clk 0:02:47.1]} 11. bxc3 {[%clk
0:02:11.9]} 11... Qxc3+ {[%clk 0:02:47.6]} 12. Bd2 {[%clk 0:02:09.8]} 12... Qc5
{[%clk 0:02:46.4]} 13. Qe2 {[%clk 0:01:45.3]} 13... Nc6 {[%clk 0:02:44.9]} 14.
Rd1 {[%clk 0:01:24.3]} 14... O-O {[%clk 0:02:34.8]} 15. Be3 {[%clk 0:01:19.8]}
15... Qa5+ {[%clk 0:02:14.2]} 16. Bd2 {[%clk 0:01:17.5]} 16... Qxa2 {[%clk
0:02:13.8]} 17. O-O {[%clk 0:01:09.4]} 17... Bg4 {[%clk 0:02:13.1]} 18. c3
{[%clk 0:00:57.9]} 18... Rad8 {[%clk 0:02:02.9]} 19. h3 {[%clk 0:00:52.4]} 19...
Bxf3 {[%clk 0:01:59.2]} 20. Rxf3 {[%clk 0:00:47.8]} 20... b5 {[%clk 0:01:57.8]}
21. Rdf1 {[%clk 0:00:36.4]} 21... Rd6 {[%clk 0:01:55.4]} 22. Qe1 {[%clk
0:00:10.5]} 22... Rfd8 {[%clk 0:01:38.2]} 23. Bg5 {[%clk 0:00:05.2]} 23... Rxd3
{[%clk 0:00:57.4]} 24. Rxf6 {[%clk 0:00:05]} 24... gxf6 {[%clk 0:00:30.4]} 25.
Bxf6 {[%clk 0:00:05]} 25... R8d6 {[%clk 0:00:29.7]} 26. Qh4 {[%clk 0:00:03.5]}
26... Rxf6 {[%clk 0:00:27.3]} 27. Qxf6 {[%clk 0:00:03.4]} 27... Rg3 {[%clk
0:00:20.2]} 28. Rf2 {[%clk 0:00:02.5]} 28... Qe6 {[%clk 0:00:16.9]} 29. Qh4
{[%clk 0:00:02.6]} 29... Rg6 {[%clk 0:00:15]} 30. Rf5 {[%clk 0:00:02.5]} 30...
Ne7 {[%clk 0:00:14.3]} 31. Rh5 {[%clk 0:00:02.6]} 31... h6 {[%clk 0:00:14.4]}
32. Qf2 {[%clk 0:00:02.2]} 32... Kg7 {[%clk 0:00:14.6]} 33. Rh4 {[%clk
0:00:02.1]} 33... Nc6 {[%clk 0:00:14.4]} 34. Rh5 {[%clk 0:00:02.2]} 34... Na5
{[%clk 0:00:14.3]} 35. Rf5 {[%clk 0:00:02.3]} 35... Nc4 {[%clk 0:00:14.4]} 36.
Qc5 {[%clk 0:00:02.1]} 36... Nd6 {[%clk 0:00:14.3]} 37. Rxe5 {[%clk 0:00:01.5]}
37... Qf6 {[%clk 0:00:14.4]} 38. Qd5 {[%clk 0:00:01.5]} 38... Nc4 {[%clk
0:00:11.4]} 39. Qd4 {[%clk 0:00:01.9]} 39... Qxe5 {[%clk 0:00:11.2]} 0-1

[Event "*** SCC Grand Prix: Titled Tuesday Blitz"]
[Site "Chess.com"]
[Date "2020.08.11"]
[Round "9"]
[White "Micki-taryan"]
[Black "swimmerchess"]
[Result "0-1"]
[WhiteElo "3031"]
[BlackElo "2850"]
[TimeControl "180+1"]
[EndTime "11:46:10 PDT"]
[Termination "swimmerchess won by checkmate"]

1. d4 {[%clk 0:03:00.9]} 1... Nf6 {[%clk 0:02:59.9]} 2. Nf3 {[%clk 0:03:01.2]}
2... g6 {[%clk 0:03:00.1]} 3. Nc3 {[%clk 0:03:01.7]} 3... d5 {[%clk 0:03:00]} 4.
Bf4 {[%clk 0:03:02.2]} 4... Bg7 {[%clk 0:03:00.2]} 5. Nb5 {[%clk 0:03:02.7]}
5... Na6 {[%clk 0:02:59.4]} 6. e3 {[%clk 0:03:03.2]} 6... O-O {[%clk 0:02:58.6]}
7. Be2 {[%clk 0:03:03.1]} 7... c5 {[%clk 0:02:49.4]} 8. c3 {[%clk 0:03:03]} 8...
Bd7 {[%clk 0:02:47]} 9. a4 {[%clk 0:03:02.2]} 9... Qb6 {[%clk 0:02:44.6]} 10.
Ne5 {[%clk 0:03:01.3]} 10... Bxb5 {[%clk 0:02:33.4]} 11. axb5 {[%clk 0:02:56.1]}
11... Nc7 {[%clk 0:02:33.6]} 12. g4 {[%clk 0:02:50.5]} 12... Rfd8 {[%clk
0:02:24.6]} 13. h4 {[%clk 0:02:28.2]} 13... Nxb5 {[%clk 0:02:23.5]} 14. h5
{[%clk 0:02:09.3]} 14... Nd6 {[%clk 0:02:19.3]} 15. dxc5 {[%clk 0:02:05.8]}
15... Qxc5 {[%clk 0:02:18.6]} 16. hxg6 {[%clk 0:02:05.9]} 16... hxg6 {[%clk
0:02:18.6]} 17. Qb3 {[%clk 0:01:47.9]} 17... b5 {[%clk 0:02:14.3]} 18. Nd3
{[%clk 0:01:43.8]} 18... Qb6 {[%clk 0:02:13.2]} 19. Nb4 {[%clk 0:01:38.8]} 19...
Nc4 {[%clk 0:02:13.4]} 20. Ra6 {[%clk 0:01:34.1]} 20... Qb7 {[%clk 0:02:14]} 21.
Bf3 {[%clk 0:01:31.4]} 21... e5 {[%clk 0:02:11.9]} 22. Bg5 {[%clk 0:01:26.3]}
22... e4 {[%clk 0:01:22]} 23. Be2 {[%clk 0:01:25.5]} 23... Rd6 {[%clk
0:01:18.5]} 24. Rxd6 {[%clk 0:01:21.4]} 24... Nxd6 {[%clk 0:01:19.4]} 25. Bxf6
{[%clk 0:01:21.9]} 25... Bxf6 {[%clk 0:01:20.3]} 26. Nxd5 {[%clk 0:01:19.2]}
26... Bg7 {[%clk 0:01:18.2]} 27. Kf1 {[%clk 0:01:15.9]} 27... Rd8 {[%clk
0:01:16.1]} 28. Kg2 {[%clk 0:01:15.6]} 28... a5 {[%clk 0:00:57.2]} 29. Nf4
{[%clk 0:01:15.3]} 29... a4 {[%clk 0:00:54.1]} 30. Qa2 {[%clk 0:01:15.6]} 30...
Kf8 {[%clk 0:00:50.7]} 31. Rd1 {[%clk 0:01:13.7]} 31... Be5 {[%clk 0:00:49.4]}
32. Qa3 {[%clk 0:01:09.4]} 32... Kg7 {[%clk 0:00:46.6]} 33. Qc5 {[%clk 0:01:08]}
33... Qe7 {[%clk 0:00:47.1]} 34. Rd5 {[%clk 0:01:05.3]} 34... f6 {[%clk
0:00:41.2]} 35. Bxb5 {[%clk 0:01:01]} 35... Rb8 {[%clk 0:00:35.7]} 36. c4 {[%clk
0:00:53.2]} 36... Rc8 {[%clk 0:00:29.7]} 37. Qb4 {[%clk 0:00:52.7]} 37... Rh8
{[%clk 0:00:25.6]} 38. c5 {[%clk 0:00:46.5]} 38... Bxf4 {[%clk 0:00:25.3]} 39.
Be2 {[%clk 0:00:32.3]} 39... Qe6 {[%clk 0:00:21.8]} 40. Rd1 {[%clk 0:00:29.7]}
40... Rh2+ {[%clk 0:00:21.7]} 41. Kg1 {[%clk 0:00:29.3]} 41... Qe5 {[%clk
0:00:20.7]} 42. Qd2 {[%clk 0:00:19.2]} 42... Qg5 {[%clk 0:00:18.7]} 43. Bf1
{[%clk 0:00:07.5]} 43... Qh4 {[%clk 0:00:18.5]} 44. Bg2 {[%clk 0:00:08.4]} 44...
Qxg4 {[%clk 0:00:14.1]} 45. f3 {[%clk 0:00:08.5]} 45... exf3 {[%clk 0:00:13.8]}
46. exf4 {[%clk 0:00:08.8]} 46... Rxg2+ {[%clk 0:00:14]} 47. Qxg2 {[%clk
0:00:07.2]} 47... Qxg2# {[%clk 0:00:14.1]} 0-1